Cogmind - Beta 13 @@@ ROGUE MODE // 2024.06.26 @ 20:45:36 // Winter2019/RPGLIKE Player: Mr.Morel Result: Destroyed by Light Nuclear Core chain reaction Performance ------------- Evolutions (2) 1000 Regions Visited (3) 600 Robots Destroyed (42) 210 Value Destroyed (1278) 1278 Prototype IDs (1) 20 Alien Tech Used (0) 0 Bonus (11) 11 TOTAL SCORE: 3119 Bonus ------- High Alert Combat Kills 11 Cogmind --------- Core Integrity 0/850 Matter 300/300 Energy 240/240 System Corruption 0% Temperature Cool (12) Movement Walking (120) Location -8/Materials Parts ------- > --- POWER (2) -------- Nuclear Core > --- PROPULSION (3) --- Aluminum Leg Aluminum Leg Aluminum Leg > --- UTILITY (2) ------ Visual Processing Unit Improved Light Armor Plating > --- WEAPON (2) ------- Rocket Launcher Maul > --- INVENTORY (4) ---- Improved Light Armor Plating Flail Flail Heavy Hammer Peak State ------------ > --- POWER ------------ Heavy Ion Engine Nuclear Core > --- PROPULSION ------- Aluminum Leg Aluminum Leg Aluminum Leg > --- UTILITY ---------- Visual Processing Unit Improved Light Armor Plating > --- WEAPON ----------- Flail Maul > --- INVENTORY -------- Light Nuclear Core Improved Light Armor Plating Flail Heavy Hammer [Rating: 19] Favorites ----------- Power Ion Engine Engine Ion Engine Power Core Nuclear Core Propulsion Aluminum Leg Leg Aluminum Leg Hover Unit Hover Unit Utility Visual Processing Unit Device Terrain Scanner Storage Medium Matter Pod Processor Visual Processing Unit Protection Light Armor Plating Weapon Flail Energy Gun Medium Laser Launcher Grenade Launcher Impact Weapon Flail Build | -11 -10 -9 -8 ------- Run | Yrd Mat Mat Mat Slots Evolved 5 | . 3 2 . Power 1 | . . 1 . Propulsion 2 | . 1 1 . Utility 1 | . 1 . . Weapon 1 | . 1 . . Parts Attached 31 | 3 14 11 3 Power 5 | 1 1 2 1 Engine 3 | 1 1 1 . Core 2 | . . 1 1 Reactor . | . . . . Propulsion 10 | 1 4 5 . Treads . | . . . . Leg 7 | 1 2 4 . Wheel . | . . . . Hover 3 | . 2 1 . Flight . | . . . . Utility 10 | . 8 1 1 Device 1 | . 1 . . Storage 5 | . 5 . . Processor 1 | . 1 . . Hackware . | . . . . Protection 3 | . 1 1 1 Artifact . | . . . . Weapon 6 | 1 1 3 1 Energy Gun 1 | 1 . . . Energy Cannon . | . . . . Ballistic Gun . | . . . . Ballistic Cannon . | . . . . Launcher 2 | . 1 . 1 Special Weapon . | . . . . Impact Weapon 3 | . . 3 . Slashing Weapon . | . . . . Piercing Weapon . | . . . . Special Melee Weapon . | . . . . Unidentified Prototypes 1 | . . 1 . Corrupted Parts 1 | . . 1 . System Corruption 12 | . . 12 . Parts Lost 2 | . . 1 1 Power 1 | . . . 1 Propulsion . | . . . . Utility 1 | . . 1 . Weapon . | . . . . Highest Loss Streak 1 | . . 1 1 To Critical Strikes . | . . . . Average Slot Usage (%) 96 | . 96 94 100 Engine 14 | . 14 18 11 Core 2 | . . 1 11 Leg 23 | . 25 13 33 Hover 5 | . 1 17 . Device 2 | . 4 . . Storage 5 | . 11 . . Processor 9 | . 8 11 11 Protection 5 | . 1 7 11 Energy Gun 7 | . 14 2 . Launcher 8 | . 13 2 4 Impact Weapon 9 | . . 18 17 Naked Turns . | . . . . Heaviest Build 25 | 7 13 21 25 Greatest Support 35 | 10 20 35 35 Greatest Overweight (x) 1 | 1 1 . . Average Overweight (x) . | . . . . Largest Inventory Capacity 4 | . 3 4 4 Average Capacity 3 | . 2 3 4 Most Carried 4 | . 3 4 4 Average Carried 2 | . 1 3 3 Final Capacity 4 | . 3 4 4 Final Carried 4 | . 1 3 4 Class Distribution -------------------- 53% | Mutant 29% | Scavenger-Gladiator 9% | Scavenger-Mutant 7% | Gladiator Dominant Class ---------------- Mutant | -10/Materials Scavenger-Gladiator | -9/Materials Scavenger-Gladiator | -8/Materials Resources | -11 -10 -9 -8 ----------- Run | Yrd Mat Mat Mat Matter Collected 830 | 230 283 122 195 Remotely . | . . . . Salvage Created 1355 | . 245 677 433 Parts 56 | . 33 11 12 Haulers Intercepted 4 | . 2 1 1 Recyclers Shooed 2 | . 1 . 1 Parts Field Recycled . | . . . . Retrieved Matter . | . . . . Parts Self-Destructed . | . . . . Prevented . | . . . . Kills | -11 -10 -9 -8 ------- Run | Yrd Mat Mat Mat Combat Hostiles Destroyed 29 | . 9 9 11 Melee 4 | . . 2 2 Guns 5 | . 5 . . AOE 12 | . 4 . 8 Classes Destroyed 9 | . 4 3 2 Builder 2 | . . . 2 Hauler 4 | . 2 1 1 Recycler 3 | . . 2 1 Operator 1 | . . 1 . Watcher 3 | . 3 . . Swarmer 3 | . 3 . . Grunt 20 | . 6 6 8 Brawler 2 | . . . 2 Sentry 4 | . . 3 1 Best Kill Streak 7 | . 3 3 7 Combat Bots Only 6 | . 3 3 6 Max Kills in Single Turn 3 | . 3 1 3 Gunslinging . | . . . . Exploded 3 | . 3 . 3 Melee 1 | . . 1 1 Uniques/NPCs Destroyed . | . . . . Combat | -11 -10 -9 -8 -------- Run | Yrd Mat Mat Mat Hostile Shots Fired 173 | . 43 94 36 Missed 56 | . 13 30 13 Damage Taken 1801 | . 450 900 451 Core 1347 | . 381 669 297 Absorbed by Shields . | . . . . Redirected to Core 1021 | . 228 530 263 Core Remaining (%) 72 | 100 93 25 . Volleys Fired 78 | . 59 4 15 Largest 2 | . 2 2 1 Hottest 80 | . 80 80 33 Shots Fired 84 | . 64 5 15 Gun 63 | . 59 4 . Cannon . | . . . . Launcher 21 | . 5 1 15 Special . | . . . . Kinetic . | . . . . Thermal 63 | . 59 4 . Explosive 21 | . 5 1 15 Electromagnetic . | . . . . Robot Hit Streak 6 | . 6 3 5 Robot Miss Streak 3 | . 3 1 3 Penetration Max . | . . . . Secondary Targets . | . . . . Shots Hit Robots 95 | . 38 41 16 Core Hits 55 | . 25 6 24 Critical Kills 4 | . . 2 2 Critical Parts Destroyed 3 | . . 3 . Critical Strikes 8 | . . 6 2 Smash 8 | . . 6 2 Melee Attacks 67 | . . 57 10 Impact 67 | . . 57 10 Slashing . | . . . . Piercing . | . . . . Sneak Attacks 6 | . . 3 3 Combat Hostiles . | . . . . Follow-up Attacks 7 | . . 6 1 Damage Inflicted 3638 | . 862 1351 1425 Guns 485 | . 447 38 . Cannons . | . . . . Explosions 1512 | . 415 62 1035 Melee 1641 | . . 1251 390 Ramming . | . . . . Kinetic . | . . . . Thermal 485 | . 447 38 . Explosive 1512 | . 415 62 1035 Electromagnetic . | . . . . Impact 1641 | . . 1251 390 Slashing . | . . . . Piercing . | . . . . Highest Corruption 12 | . . 12 . Average Corruption 12 | . . 12 . Corruption Purged . | . . . . Corruption Blocked . | . . . . Effects 3 | . . 3 . Heat Flow Errors 1 | . . 1 . Data Loss (minor) 1 | . . 1 . Data Loss (major) 1 | . . 1 . Overload Shots . | . . . . Overflow Damage 347 | . . 249 98 Projectiles . | . . . . Explosions 36 | . . 7 29 Melee 311 | . . 242 69 Knockbacks 7 | . . 7 . Impact 7 | . . 7 . Kinetic . | . . . . Secondary . | . . . . Self-Inflicted Damage 40 | . 40 . . Shots 1 | . 1 . . Rammed . | . . . . Targets Rammed . | . . . . Kicked . | . . . . Crushed . | . . . . Highest Temperature 295 | . 295 93 15 Average Temperature 73 | . 78 45 7 Received Heat Transfer 858 | . 228 414 216 Effects 1 | . 1 . . Energy Bleed 1 | . 1 . . Siege Activations . | . . . . Robots Corrupted . | . . . . Combat Hostiles . | . . . . Parts Fried 11 | . . 9 2 Impact Corruptions 18 | . . 14 4 Robots Melted . | . . . . Combat Hostiles . | . . . . Parts Melted 2 | . 2 . . Heat Transferred 1443 | . 1332 111 . Parts Sabotaged . | . . . . Parts Stolen . | . . . . Parts Stripped . | . . . . Power Chain Reactions . | . . . . Alert | -11 -10 -9 -8 ------- Run | Yrd Mat Mat Mat Peak Influence 471 | . 271 294 471 Initial 104 | . . 27 104 Average 156 | . 114 176 239 Maximum Alert Level 2 | . 1 1 2 Low Security (%) 71 | 100 80 65 56 Level 1 24 | . 19 34 25 Level 2 3 | . . . 18 Level 3 . | . . . . Level 4 . | . . . . Level 5 . | . . . . High Security . | . . . . Max Security . | . . . . Squads Dispatched 5 | . 2 1 2 Investigation . | . . . . Extermination . | . . . . Reinforcement 5 | . 2 1 2 Assault . | . . . . Garrison . | . . . . Intercept . | . . . . Searches Triggered . | . . . . Construction Impeded 1 | . . . 1 Haulers Reinforced . | . . . . Active Scanning Responses . | . . . . Cargo Convoy Interrupts . | . . . . Stealth | -11 -10 -9 -8 --------- Run | Yrd Mat Mat Mat Distress Signals 1 | . . . 1 Communications Jammed . | . . . . Distress Signals . | . . . . Times Spotted 48 | . 17 15 16 Peak Tracking Total 6 | . 5 4 6 Tactical Retreats 5 | . 1 4 . Traps | -11 -10 -9 -8 ------- Run | Yrd Mat Mat Mat Traps Triggered . | . . . . Indirectly . | . . . . Trap Hack Attempts . | . . . . Triggered . | . . . . Disarmed . | . . . . Reprogrammed . | . . . . Reused . | . . . . Traps Extracted . | . . . . Installed . | . . . . Triggered . | . . . . Machines | -11 -10 -9 -8 ---------- Run | Yrd Mat Mat Mat Machines Disabled 9 | . 4 1 4 Max in Single Turn 3 | . 3 1 1 Machines Repaired . | . . . . Machines Dismantled . | . . . . Machines Sabotaged . | . . . . Overloaded Fab Kills . | . . . . Hacking | -11 -10 -9 -8 --------- Run | Yrd Mat Mat Mat Machines Accessed 7 | . 4 . 3 Terminals 7 | . 4 . 3 Fabricators . | . . . . Repair Stations . | . . . . Recycling Units . | . . . . Scanalyzers . | . . . . Garrison Access . | . . . . Total Hacks 15 | . 8 . 7 Successful 9 | . 5 . 4 Failed 6 | . 3 . 3 Catastrophic . | . . . . Database Lockouts . | . . . . Manual . | . . . . Terminals 15 | . 8 . 7 Fabricators . | . . . . Repair Stations . | . . . . Recycling Units . | . . . . Scanalyzers . | . . . . Garrison Access . | . . . . Terminal Hacks 9 | . 5 . 4 Record 1 | . 1 . . Robot Analysis 1 | . 1 . . Branch Access Points 1 | . . . 1 Emergency Access Points 1 | . 1 . . Terminal Index 1 | . . . 1 Locate Traps 1 | . . . 1 Zone Layout 3 | . 2 . 1 Fabricator Hacks . | . . . . Repair Station Hacks . | . . . . Recycling Unit Hacks . | . . . . Scanalyzer . | . . . . Garrison Access Hacks . | . . . . Unauthorized Hacks . | . . . . Terminals . | . . . . Fabricators . | . . . . Repair Stations . | . . . . Recycling Units . | . . . . Scanalyzers . | . . . . Garrison Access . | . . . . Data Cores Recovered . | . . . . Used . | . . . . Hacking Detections 4 | . 2 . 2 Full Trace Events . | . . . . Feedback Events . | . . . . Feedback Blocked . | . . . . Robot Schematics Acquired . | . . . . Robots Built . | . . . . Authchips . | . . . . Time . | . . . . Total Robot Build Rating . | . . . . Part Schematics Acquired . | . . . . Parts Built . | . . . . Authchips . | . . . . Time . | . . . . Total Part Build Rating . | . . . . Parts Repaired . | . . . . Time . | . . . . Parts Recycled . | . . . . Recycled Matter . | . . . . Retrieved Matter . | . . . . Retrieved Components . | . . . . Parts Scanalyzed . | . . . . Part Schematics Acquired . | . . . . Parts Damaged . | . . . . Bothacking | -11 -10 -9 -8 ------------ Run | Yrd Mat Mat Mat Used RIF Installer . | . . . . Robots Hacked . | . . . . Non-combat . | . . . . Combat . | . . . . Robot Hacks Applied . | . . . . Relay Couplers Released . | . . . . Fabnet Peak Effective % . | . . . . Robots Rewired . | . . . . Allies Hacked . | . . . . Hacks Repelled . | . . . . Allies | -11 -10 -9 -8 -------- Run | Yrd Mat Mat Mat Total Allies . | . . . . Largest Group . | . . . . Highest-Rated Group . | . . . . Highest-Rated Ally . | . . . . Total Orders . | . . . . Ally Attacks . | . . . . Total Damage . | . . . . Kills . | . . . . Allies Corrupted . | . . . . Allies Melted . | . . . . Intel | -11 -10 -9 -8 ------- Run | Yrd Mat Mat Mat Robot Analysis Total 1 | . 1 . . Derelict Logs Recovered . | . . . . Drone Launches . | . . . . Drone Recoveries . | . . . . Exploration | -11 -10 -9 -8 ------------- Run | Yrd Mat Mat Mat Turns Passed 2386 | 52 1116 703 515 Spaces Moved 1928 | 46 818 691 373 Core 14 | 14 . . . Treads . | . . . . Legs 1392 | 32 754 233 373 Wheels . | . . . . Hover 522 | . 64 458 . Flight . | . . . . Fastest Speed 50 | 50 56 52 120 Average Speed 101 | 105 115 76 120 Slowest Speed 120 | 120 120 120 120 Overloaded Moves . | . . . . Propulsion Burnouts . | . . . . Robots Hopped . | . . . . Cave-ins Triggered . | . . . . Exploration Rate (%) 39 | 4 88 44 23 Regions Visited 3 Branch Regions . Pre-discovered Areas . | . . . . Known Exits Taken . | . . . . Unknown Exits Taken 3 | 1 1 1 . Scrap Searched . | . . . . Spaces Dug 1 | . . . 1 Terrain Destroyed 93 | . 33 4 56 Melee 1 | . . . 1 Projectile . | . . . . AOE 92 | . 33 4 55 Terrain Rammed . | . . . . Walls Destroyed . | . . . . Machines Disabled . | . . . . Actions | -11 -10 -9 -8 --------- Run | Yrd Mat Mat Mat Total 2174 | 48 928 788 410 Wait 20 | . . 17 3 Move 1925 | 45 817 690 373 Hop . | . . . . Pick Up 19 | . 9 8 2 Fast Attach 11 | 3 4 4 . Attach 6 | . 4 2 . Detach 4 | . 4 . . Swap 14 | . 6 5 3 Drop 19 | . 8 8 3 Fire 78 | . 59 4 15 Melee 54 | . . 46 8 Ram . | . . . . Kick . | . . . . Crush . | . . . . Escape Stasis . | . . . . Rewire . | . . . . Trap . | . . . . Miscellaneous 24 | . 17 4 3 Route ------- -11/Scrapyard -10/Materials (discovered 4 exits: *Mat x2 / [*Min x2]) -9/Materials (discovered 2 exits: *Mat / [*Sto]) -8/Materials History --------- Turn | Location | Event 3 | -11/Scrapyard | Discovered new exit (range 15) 53 | -11/Scrapyard | Entered Materials 53 | -10/Materials | Upgraded with Propulsion slot (x1) 53 | -10/Materials | Upgraded with Utility slot (x1) 53 | -10/Materials | Upgraded with Weapon slot (x1) 118 | -10/Materials | Discovered new exit (range 11) 220 | -10/Materials | Discovered new exit (range 16) 316 | -10/Materials | Build established: Mutant 755 | -10/Materials | Discovered new exit (range 18) 1156 | -10/Materials | Discovered new exit (range 14) 1169 | -10/Materials | Entered another Materials area 1171 | -9/Materials | Reached level 2 1214 | -9/Materials | Discovered new exit (range 4) 1338 | -9/Materials | Reached level 3 1340 | -9/Materials | Upgraded with Power slot (x1) 1340 | -9/Materials | Upgraded with Propulsion slot (x1) 1464 | -9/Materials | Core integrity fell below 50% 1775 | -9/Materials | System corruption reached 10% 1840 | -9/Materials | Discovered new exit (range 19) 1872 | -9/Materials | Entered another Materials area 1873 | -8/Materials | Core integrity fell below 50% 1874 | -8/Materials | Reached level 4 1904 | -8/Materials | Build established: Scavenger-Gladiator 2133 | -8/Materials | Core integrity fell below 20% 2164 | -8/Materials | Reached level 5 2387 | -8/Materials | Destroyed by Light Nuclear Core chain reaction Last Messages --------------- U-05 Engineer builds a Wall. U-05 Engineer lays Concrete. Acquired 29 matter. O-16 Technician: "IFF HANDSHAKE FAILED. SECURING TERMINAL." ALERT: Hostiles spotted, dispatching reinforcements to Terminal M001. K-01 Serf cleans the Neutrino Reactor. G-47 Trooper suffers critical hit (Smash). G-47 Trooper destroyed. K-01 Serf cleans the Neutrino Reactor. Destroyed Imp. Heat Sink. G-47 Trooper system corrupted by crushing effect. Neutrino Reactor explodes. G-47 Trooper system terminally corrupted. Particle Gun fried. Chain reaction triggered in Hvy. Ion Engine. Chain reaction triggered in Corrupted Lgt. Nuclear Core. Map ----- +----------------------------------------------------+ | ???????????????????????????????????????????# | | ???????????????????????????????????????????# | | ???????????????????????????????????????????# | | ???????????????????????????????????????????# | | ???????????????????????????????????????????# | | ???????????????????????????????????????????# | | ???????????????????????????????????????????# ### | | ???????????????????????????????????????????# #?# | | ??????????????#????????????????????????????# #?# | | ??????????????# ???????????????????????????# #?# | | ??????????????# ??????????????????????????# #?# | | ??????????????? ###+####?????????????????#% #?# | | ????????????????? #??????????######?# #?? | | ?????????????????? +?????????##%%%%### #?? | | ???????????????????? #?????????#% %## #?? | | ?????????????????????# #?????????# ## #?? | | ?????????????????????# ########### ## #?? | | ?????????????????????# % #?? | | ?????????????????????+ = #?? | | ?????????????????????# #?? | | ?????????????????????# ################### #?? | | ?????????????????????# #?????????????????# #?? | | ????????????????#######/#######????????????# #?? | | ????????????????# g % #????????????# #?? | | ????????????????# """g"""% #????????????# #?? | | ????????????????# """ """@ #????????????# #?? | | ????????????????# """ """ #????????????# #?? | | ????????????????# k b #????????????+ +?? | | ????????????????# #????????????# #?? | | ????????????????##+############????????????# #?? | | ???????????????? ????????????????????????# #?? | | ?????????????? ?????????????????????????# ?? | | ??????????????? ?????????????????????????+ ?? | | ??????????????##???????????????????????????# ?? | | ???????????????????????????????????????????####+?? | | ??????????????????????????????????????????????? ?? | | ???????????????????????????????????????????????"?? | | ???????????????????????????????????????????????" ? | | ?????????????????????????????????????????????????? | | ?????????????????????????????????????????????????? | | ?????????????????????????????????????????????????? | | ?????????????????????????????????????????????????? | | ?????????????????????????????????????????????????? | | ?????????????????????????????????????????????????? | | ?????????????????????????????????????????????????? | | ?????????????????????????????????????????????????? | | ?????????????????????????????????????????????????? | | ?????????????????????????????????????????????????? | | ?????????????????????????????????????????????????? | | ?????????????????????????????????????????????????? | +----------------------------------------------------+ Best States ------------- Heat Dissipation 43 Energy Generation 23 Energy Capacity 420 Matter Stores 400 Matter Capacity 400 Sight Range 19 Terrain Scan Range 14 Terrain Scan Density 10 Armor Coverage 150 Evasion (%) 55 Item Schematics ----------------- None Robot Schematics ------------------ None Fabricated ------------ Nothing Alien Tech Used ----------------- None Achievements -------------- None Challenges ------------ None RPGLIKE | -11 -10 -9 -8 --------- Run | Yrd Mat Mat Mat Levels Raised 4 | . . 2 2 XP Earned 10335 | 3000 1350 2810 3175 XP Spent 7335 | . 3000 2935 1400 Upgrades 23 | . 6 13 4 Power Slot 1 | . . 1 . Propulsion Slot 2 | . 1 1 . Utility Slot 1 | . 1 . . Weapon Slot 1 | . 1 . . Core Integrity 5 | . . 5 . Heat Dissipation 3 | . . 3 . Mass Support 1 | . . 1 . Inventory Capacity 4 | . 3 1 . Sight Range 1 | . . 1 . Melee Accuracy 4 | . . . 4 Protomatter Created 286 | . 180 25 81 Integrity Restored 476 | . 353 75 48 Core 465 | . 342 75 48 Parts 11 | . 11 . . Protomatter Decayed 62 | . 62 . . Game ------ Seed GodRemoteInterrupter Manual? 0 Play Time 00:43:50 Cumulative 11.1 hours Start 2024.06.26 @ 20:01:01 End 2024.06.26 @ 20:45:36 Sessions 1 Manual Loads 0 Difficulty Rogue Special Mode Winter2019/RPGLIKE Game No. 27 Rogue 27 Adventurer 0 Explorer 0 Win Type - Total 0 Types 0/0/0/0/0/0/0/0/0 Lore% 12 Gallery% 18 Achievement% 14 Wizard Run 0 Options --------- Layout 2 ASCII 0 Keyboard 1 Movement Arrows Keybinds 0 Fullscreen 1 Font 24/Cog Map View 50x44 Zoom Use 0% Tactical HUD 0 Map Filters NONE Filters LOW_CONTRAST(47,30,31) Steam 1 RUN: b93e9aa1-4be5-4b23-865f-d2ac93221130